fUSD/lending_fUSD_20260127
["ID","MTS","AMOUNT","RATE_DAILY","PERIOD"]
[403685725,1769478641285,-500.0,0.00015793,2]
[403685726,1769478641294,-500.0,0.00015793,2]
[403685727,1769478641305,-511.43170283,0.00015793,2]
[403685728,1769478641314,-500.0,0.00015793,2]
[403685729,1769478641324,-500.0,0.00015793,2]
[403685730,1769478641334,-536.94514641,0.00015793,2]
[403685731,1769478641344,-500.0,0.00015793,2]
[403685732,1769478641354,-500.0,0.00015793,3]
[403685733,1769478641366,-500.0,0.00015793,4]
[403685734,1769478641375,-500.0,0.00015793,5]
[403685735,1769478641384,-500.0,0.00015793,2]
[403685736,1769478641393,-500.0,0.00015793,2]
[403685737,1769478641402,-500.0,0.00015793,2]
[403685738,1769478641411,-500.0,0.00015793,2]
[403685739,1769478641421,-500.0,0.00015793,2]
[403685740,1769478641430,-512.3197601,0.00015793,2]
[403685741,1769478641440,-500.0,0.00015793,2]
[403685742,1769478641449,-500.0,0.00015793,2]
[403685743,1769478641458,-500.0,0.00015793,2]
[403685744,1769478641467,-500.0,0.00015793,2]
[403685745,1769478641477,-500.0,0.00015793,2]
[403685746,1769478641486,-500.0,0.00015793,2]
[403685747,1769478641496,-500.0,0.00015793,2]
[403685748,1769478641504,-500.0,0.00015793,2]
[403685749,1769478641513,-500.0,0.00015793,2]
[403685750,1769478641522,-500.0,0.00015793,2]
[403685751,1769478641531,-500.0,0.00015793,2]
[403685752,1769478641540,-253.11506529,0.00015793,2]
[403685753,1769478641549,-500.0,0.00015793,2]
[403685754,1769478641559,-644.72788162,0.00015793,2]
[403685755,1769478641568,-500.0,0.00015793,2]
[403685756,1769478641577,-500.0,0.00015793,2]
[403685757,1769478641586,-500.0,0.00015793,2]
[403685758,1769478641595,-500.0,0.00015793,2]
[403685759,1769478641606,-400.0,0.000158,5]
[403685760,1769478641616,-6245.20346988,0.00015802,2]
[403685761,1769478641626,-80782.30482482,0.00015807,2]
[403685762,1769478641636,-929.5,0.00015867,2]
[403685763,1769478641647,-206.0,0.00015873,2]
[403685764,1769478641656,-800.0,0.000159,5]
[403685765,1769478641665,-1018.0,0.00015938,2]
[403685766,1769478641675,-1195.03,0.00016,2]
[403685767,1769478641684,-6245.20346988,0.00016064,2]
[403685768,1769478641693,-150.0,0.00016094,2]
[403685769,1769478641702,-150.0,0.00016094,2]
[403685770,1769478641711,-929.5,0.00016141,2]
[403685771,1769478641906,-318.88698426,0.00016183,2]
[403685772,1769478641916,-3659.2,0.00016193,2]
[403685773,1769478641926,-150.0,0.000162,2]
[403685774,1769478641935,-150.0,0.00016258,2]
[403685775,1769478641945,-1629.96015512,0.00016294,2]
[403685776,1769478641954,-150.0,0.00016316,2]
[403685777,1769478641964,-6245.20346988,0.00016327,2]
[403685778,1769478641973,-206.05,0.00016342,2]
[403685779,1769478641982,-500.0,0.00016373,2]
[403685780,1769478641991,-500.0,0.00016373,2]
[403685781,1769478642001,-288.53,0.00016373,2]
[403685782,1769478642010,-150.0,0.00016374,2]
[403685783,1769478642020,-929.5,0.00016415,2]
[403685784,1769478642030,-644.64122605,0.00016417,2]
[403685785,1769478642040,-150.0,0.00016432,2]
[403685786,1769478642049,-500.0,0.00016438,2]
[403685787,1769478642058,-500.0,0.00016438,2]
[403685788,1769478642068,-500.0,0.00016438,2]
[403685789,1769478642077,-500.0,0.00016438,2]
[403685790,1769478642086,-185.70403885,0.00016438,2]
[403685791,1769478642099,-500.0,0.00016438,2]
[403685792,1769478642109,-500.0,0.00016438,2]
[403685793,1769478642120,-500.0,0.00016438,2]
[403685794,1769478642130,-564.55854289,0.00016438,2]
[403685795,1769478642139,-267.46074303,0.00016438,2]
[403685796,1769478642148,-150.0,0.0001649,2]
[403685797,1769478642158,-422.81407784,0.00016506,2]
[403685798,1769478642168,-150.0,0.00016548,2]
[403685799,1769478642180,-6245.20346988,0.00016589,2]
[403685800,1769478642189,-150.0,0.00016606,2]
[403685801,1769478642198,-1696.57467251,0.00016626,2]
[403685802,1769478642208,-510.0,0.00016658,2]
[403685803,1769478642216,-150.0,0.00016665,2]
[403685804,1769478642225,-929.5,0.00016689,2]
[403685805,1769478642234,-212.21,0.00016705,2]
[403685806,1769478642243,-150.0,0.00016723,2]
[403685807,1769478642252,-160.38,0.00016742,2]
[403685808,1769478642263,-150.0,0.00016781,2]
[403685809,1769478642273,-1557.61292132,0.00016803,2]
[403685810,1769478642283,-150.0,0.00016839,2]
[403685811,1769478642294,-420.0,0.0001684,2]
[403685812,1769478642305,-6245.20346988,0.00016851,2]
[403685813,1769478642314,-9175.0236562,0.00016882,2]
[403685814,1769478642324,-150.0,0.00016897,2]
[403685815,1769478642335,-256.38953393,0.00016899,2]
[403685816,1769478642344,-500.0,0.00016899,2]
[403685817,1769478642354,-1000.0,0.00016921,2]
[403685818,1769478642364,-1001.58773113,0.00016921,2]
[403685819,1769478642373,-1680.0,0.00016925,2]
[403685820,1769478642384,-209.21500565,0.00016934,2]
[403685821,1769478642392,-195.0,0.00016934,2]
[403685822,1769478642402,-250.0,0.00016934,2]
[403685823,1769478642411,-502.14491625,0.00016934,2]
[403685824,1769478642421,-301.0,0.00016948,2]
[403685825,1769478642431,-157.0,0.00016948,2]
[403685826,1769478642440,-150.0,0.00016955,2]
[403685827,1769478642449,-929.5,0.00016963,2]
[403685828,1769478642459,-200.0,0.00016986,5]
[403685829,1769478642468,-200.0,0.00016986,5]
[403685830,1769478642477,-200.0,0.00016986,5]
[403685831,1769478642486,-200.0,0.00016986,5]
[403685832,1769478642496,-200.0,0.00016986,5]
[403685833,1769478642505,-200.0,0.00016986,5]
[403685834,1769478642514,-200.0,0.00016986,5]
[403685835,1769478642523,-200.0,0.00016986,5]
[403685836,1769478642532,-200.0,0.00016986,5]
[403685837,1769478642542,-200.0,0.00016986,5]
[403685838,1769478642551,-200.0,0.00016986,5]
[403685839,1769478642560,-200.0,0.00016986,5]
[403685840,1769478642569,-200.0,0.00016986,5]
[403685841,1769478642579,-200.0,0.00016986,5]
[403685842,1769478642589,-200.0,0.00016986,5]
[403685843,1769478642598,-200.0,0.00016986,5]
[403685844,1769478642607,-200.0,0.00016986,5]
[403685845,1769478642616,-200.0,0.00016986,5]
[403685846,1769478642626,-200.0,0.00016986,5]
[403685847,1769478642635,-272.835245,0.00016986,5]
[403685848,1769478642644,-262.20735241,0.00016986,2]
[403685849,1769478642653,-1000.0,0.00017,2]
[403685850,1769478642663,-150.0,0.00017013,2]
[403685851,1769478642672,-150.00234605,0.00017034,2]
[403685852,1769478642682,-200.0,0.00017041,2]
[403685853,1769478642691,-200.0,0.00017041,2]
[403685854,1769478642700,-300.0,0.00017042,2]
[403685855,1769478642710,-500.0,0.00017042,2]
[403685856,1769478642718,-2553.93048328,0.00017042,2]
[403685857,1769478642727,-300.0,0.00017042,2]
[403685858,1769478642736,-195.0,0.00017042,2]
[403685859,1769478642746,-200.0,0.00017042,2]
[403685860,1769478642755,-200.0,0.00017042,2]
[403685861,1769478642764,-150.0,0.00017071,2]
[403685862,1769478642773,-6245.20346988,0.00017113,2]
[403685864,1769478642782,-150.0,0.00017129,2]
[403685866,1769478642791,-150.0,0.00017187,2]
[403685868,1769478642800,-288.53,0.00017192,2]
[403685870,1769478642810,-929.5,0.00017237,2]
[403685871,1769478642819,-150.0,0.00017245,2]
[403685872,1769478642828,-150.0,0.00017303,2]
[403685873,1769478642837,-868.08,0.00017321,2]
[403685874,1769478642846,-150.0,0.00017361,2]
[403685875,1769478642855,-6245.20346988,0.00017376,2]
[403685876,1769478642865,-725.35064776,0.00017408,2]
[403685877,1769478642874,-220.72805091,0.00017418,2]
[403685878,1769478642883,-256.42749579,0.00017418,2]
[403685879,1769478642892,-201.93286099,0.00017418,2]
[403685880,1769478642901,-250.0,0.00017418,2]
[403685881,1769478642912,-250.0,0.00017418,2]
[403685882,1769478642921,-3543.0,0.00017418,2]
[403685883,1769478642931,-222.73131592,0.00017418,2]
[403685884,1769478642941,-250.0,0.00017418,2]
[403685885,1769478642951,-250.0,0.00017418,2]
[403685886,1769478642970,-250.0,0.00017418,2]
[403685887,1769478642991,-250.0,0.00017418,2]
[403685890,1769478643013,-250.0,0.00017418,2]
[403685893,1769478643033,-250.0,0.00017418,2]
[403685895,1769478643048,-250.0,0.00017418,2]
[403685896,1769478643060,-250.0,0.00017418,2]
[403685897,1769478643073,-250.0,0.00017418,2]
[403685898,1769478643085,-250.0,0.00017418,2]
[403685899,1769478643100,-250.0,0.00017418,2]
[403685900,1769478643119,-250.0,0.00017418,2]
[403685901,1769478643132,-250.0,0.00017418,2]
[403685902,1769478643145,-250.0,0.00017418,2]
[403685903,1769478643155,-264.22260226,0.00017418,2]
[403685904,1769478643167,-250.0,0.00017418,2]
[403685905,1769478643181,-250.0,0.00017418,2]
[403685906,1769478643193,-250.0,0.00017418,2]
[403685907,1769478643204,-250.0,0.00017418,2]
[403685908,1769478643216,-250.0,0.00017418,2]
[403685909,1769478643226,-250.0,0.00017418,2]
[403685910,1769478643237,-250.0,0.00017418,2]
[403685911,1769478643249,-250.0,0.00017418,2]
[403685912,1769478643260,-174.61919141,0.00017418,2]
[403685913,1769478643270,-322.7432892,0.00017418,2]
[403685914,1769478643280,-250.0,0.00017418,2]
[403685915,1769478643292,-625.40992031,0.00017418,2]
[403685916,1769478643305,-250.0,0.00017418,2]
[403685917,1769478643317,-176.3821319,0.00017418,2]
[403685918,1769478643327,-2500.0,0.00017418,2]
[403685919,1769478643339,-2500.0,0.00017418,2]
[403685920,1769478643351,-2500.0,0.00017418,2]
[403685921,1769478643361,-2500.0,0.00017418,2]
[403685922,1769478643372,-250.0,0.00017418,2]
[403685923,1769478643383,-2221.90167299,0.00017418,2]
[403685924,1769478643392,-578.20924308,0.00017418,2]
[403685925,1769478643403,-250.0,0.00017418,2]
[403685926,1769478643413,-250.0,0.00017418,2]
[403685927,1769478643423,-250.0,0.00017418,2]
[403685928,1769478643432,-250.0,0.00017418,2]
[403685929,1769478643441,-250.0,0.00017418,2]
[403685930,1769478643451,-250.0,0.00017418,2]
[403685931,1769478643460,-151.0,0.00017418,2]
[403685932,1769478643470,-250.0,0.00017418,2]
[403685933,1769478643481,-823.77908852,0.00017418,2]
[403685934,1769478643491,-250.0,0.00017418,2]
[403685935,1769478643501,-250.0,0.00017418,2]
[403685936,1769478643514,-250.0,0.00017418,2]
[403685937,1769478643524,-250.0,0.00017418,2]
[403685938,1769478643533,-250.0,0.00017418,2]
[403685939,1769478643542,-250.0,0.00017418,2]
[403685941,1769478643557,-250.0,0.00017418,2]
[403685942,1769478643577,-250.0,0.00017418,2]
[403685943,1769478643595,-250.0,0.00017418,2]
[403685944,1769478643604,-250.0,0.00017418,2]
[403685945,1769478643614,-250.0,0.00017418,2]
[403685946,1769478643626,-322.6107,0.00017418,2]
[403685947,1769478643639,-250.0,0.00017418,2]
[403685948,1769478643648,-250.0,0.00017418,2]
[403685949,1769478643658,-250.0,0.00017418,2]
[403685950,1769478643668,-250.0,0.00017418,2]
[403685951,1769478643678,-250.0,0.00017418,2]
[403685952,1769478643687,-250.0,0.00017418,2]
[403685953,1769478643696,-250.0,0.00017418,2]
[403685954,1769478643705,-250.0,0.00017418,2]
[403685955,1769478643715,-250.0,0.00017418,2]
[403685956,1769478643724,-250.0,0.00017418,2]
[403685957,1769478643734,-250.0,0.00017418,2]
[403685958,1769478643743,-500.0,0.00017418,2]
[403685959,1769478643754,-250.0,0.00017418,2]
[403685961,1769478643764,-250.0,0.00017418,2]
[403685962,1769478643773,-500.0,0.00017418,2]
[403685963,1769478643783,-250.0,0.00017418,2]
[403685964,1769478643793,-250.0,0.00017418,2]
[403685965,1769478643802,-743.50770149,0.00017418,2]
[403685966,1769478643812,-500.0,0.00017418,2]
[403685967,1769478643821,-250.0,0.00017418,2]
[403685968,1769478643831,-250.0,0.00017418,2]
[403685969,1769478643841,-500.0,0.00017418,2]
[403685970,1769478643851,-1000.0,0.00017418,2]
[403685971,1769478643862,-1000.0,0.00017418,2]
[403685972,1769478643872,-500.0,0.00017418,2]
[403685973,1769478643881,-1000.0,0.00017418,2]
[403685974,1769478643890,-500.0,0.00017418,2]
[403685975,1769478643899,-695.39793187,0.00017418,2]
[403685976,1769478643908,-1000.0,0.00017418,2]
[403685977,1769478643918,-500.0,0.00017418,2]
[403685978,1769478643927,-1000.0,0.00017418,2]
[403685979,1769478643936,-500.0,0.00017418,2]
[403685980,1769478643946,-1000.0,0.00017418,2]
[403685981,1769478643955,-500.0,0.00017418,2]
[403685982,1769478643964,-1000.0,0.00017418,2]
[403685983,1769478643973,-151.21465745,0.00017418,2]
[403685984,1769478643984,-500.0,0.00017418,2]
[403685985,1769478643994,-1000.0,0.00017418,2]
[403685986,1769478644004,-500.0,0.00017418,2]
[403685987,1769478644014,-1000.0,0.00017418,2]
[403685988,1769478644024,-500.0,0.00017418,2]
[403685989,1769478644034,-1000.0,0.00017418,2]
[403685990,1769478644044,-1000.0,0.00017418,2]
[403685991,1769478644053,-1000.0,0.00017418,2]
[403685992,1769478644063,-250.0,0.00017418,2]
[403685993,1769478644072,-250.0,0.00017418,2]
[403685994,1769478644083,-250.0,0.00017418,2]
[403685995,1769478644092,-250.0,0.00017418,2]
[403685996,1769478644106,-250.0,0.00017418,2]
[403685997,1769478644116,-250.0,0.00017418,2]
[403685998,1769478644125,-250.0,0.00017418,2]
[403685999,1769478644134,-250.0,0.00017418,2]
[403686000,1769478644146,-250.0,0.00017418,2]
[403686001,1769478644155,-250.0,0.00017418,2]
[403686002,1769478644166,-250.0,0.00017418,2]
[403686003,1769478644176,-250.0,0.00017418,2]
[403686004,1769478644185,-151.0,0.00017418,2]
[403686005,1769478644194,-150.0,0.00017419,2]
[403686006,1769478644203,-847.36023222,0.00017468,2]
[403686007,1769478644213,-422.81407784,0.00017472,2]
[403686008,1769478644222,-150.0,0.00017477,2]
[403686009,1769478644231,-1200.0,0.000175,6]
[403686010,1769478644241,-929.54203237,0.00017511,2]
[403686011,1769478644250,-150.0,0.00017535,2]
[403686012,1769478644259,-5888.0,0.00017544,2]
[403686013,1769478644268,-159.43753018,0.00017572,2]
[403686014,1769478644277,-150.0,0.00017594,2]
[403686015,1769478644286,-868.08,0.00017594,2]
[403686016,1769478644295,-1000.0,0.000176,2]
[403686017,1769478644304,-1700.0,0.000176,6]
[403686018,1769478644313,-4477.28740317,0.00017626,2]
[403686019,1769478644323,-7898.46568903,0.00017626,2]
[403686020,1769478644332,-11815.63229459,0.00017626,2]
[403686021,1769478644341,-15986.9655,0.00017626,2]
[403686022,1769478644351,-6245.20346988,0.00017638,2]
[403686023,1769478644361,-150.0,0.00017652,2]
[403686024,1769478644370,-2100.0,0.000177,6]
[403686025,1769478644379,-150.0,0.0001771,2]
[403686026,1769478644393,-150.0,0.00017768,2]
[403686027,1769478644403,-400.0,0.000178,6]
[403686028,1769478644412,-150.0,0.00017826,2]
[403686029,1769478644423,-866.0,0.00017854,2]
[403686030,1769478644433,-868.08,0.00017868,2]
[403686031,1769478644443,-150.0,0.00017884,2]
[403686032,1769478644454,-312.94885451,0.000179,2]
[403686033,1769478644632,-10000.0,0.000179,2]
[403686034,1769478644646,-1000.0,0.000179,2]
[403686035,1769478644656,-400.0,0.000179,6]
[403686036,1769478644665,-1678.09283682,0.000179,2]
[403686037,1769478644675,-1678.09283677,0.000179,2]
[403686038,1769478644684,-1678.09283677,0.000179,2]
[403686039,1769478644693,-1678.09283677,0.000179,2]
[403686040,1769478644703,-1678.09283677,0.000179,2]
[403686041,1769478644713,-1678.09283677,0.000179,2]
[403686042,1769478644722,-1678.09283677,0.000179,2]
[403686043,1769478644732,-1678.09283677,0.000179,2]
[403686044,1769478644741,-1678.09283677,0.000179,2]
[403686045,1769478644751,-1678.09283677,0.000179,2]
[403686046,1769478644760,-1678.09283677,0.000179,2]
[403686047,1769478644769,-1678.09283677,0.000179,2]
[403686048,1769478644779,-1678.09283677,0.000179,2]
[403686049,1769478644788,-1678.09283677,0.000179,2]
[403686050,1769478644797,-1678.09283677,0.000179,2]
[403686051,1769478644806,-1678.09283677,0.000179,2]
[403686052,1769478644815,-1678.09283677,0.000179,2]
[403686053,1769478644825,-1678.09283677,0.000179,2]
[403686054,1769478644834,-223.42523209,0.000179,3]
[403686055,1769478644843,-1678.09283677,0.000179,2]
[403686056,1769478644852,-1678.09283677,0.000179,2]
[403686057,1769478644861,-6245.20346988,0.000179,2]
[403686058,1769478644871,-622.54326885,0.000179,2]
[403686059,1769478644880,-206.05,0.00017908,2]
[403686060,1769478644890,-200.0,0.00017915,2]
[403686061,1769478644900,-849.0,0.00017917,2]
[403686062,1769478644909,-150.0,0.00017942,2]
[403686063,1769478644919,-150.0,0.00017942,2]
[403686064,1769478644928,-209.40437684,0.00017966,2]
[403686065,1769478644938,-181.08010149,0.00017966,2]
[403686066,1769478644948,-151.0,0.00017966,2]
[403686067,1769478644958,-854.2589148,0.00017966,2]
[403686068,1769478644967,-531.88490552,0.00017966,2]
[403686069,1769478644976,-218.0,0.00017968,2]
[403686070,1769478644985,-150.0,0.00017973,2]
[403686071,1769478644993,-150.0,0.00017973,2]
[403686072,1769478645002,-725.35064776,0.0001799,2]
[403686073,1769478645011,-725.35064776,0.0001799,2]
[403686074,1769478645021,-6244.313364,0.00017997,2]
[403686075,1769478645030,-500.0,0.00017999,2]
[403686076,1769478645039,-500.0,0.00017999,2]
[403686077,1769478645048,-352.54822446,0.00017999,2]
[403686078,1769478645057,-12694.7759262,0.00017999,2]
[403686079,1769478645066,-500.0,0.00017999,2]
[403686080,1769478645075,-500.0,0.00017999,2]
[403686081,1769478645084,-500.0,0.00017999,2]
[403686082,1769478645094,-500.0,0.00017999,2]
[403686083,1769478645103,-500.0,0.00017999,2]
[403686084,1769478645115,-500.0,0.00017999,2]
[403686085,1769478645125,-500.0,0.00017999,2]
[403686086,1769478645134,-500.0,0.00017999,2]
[403686087,1769478645146,-500.0,0.00017999,2]
[403686088,1769478645155,-500.0,0.00017999,2]
[403686089,1769478645164,-590.08979136,0.00017999,2]
[403686090,1769478645173,-500.0,0.00017999,2]
[403686091,1769478645183,-500.0,0.00017999,2]
[403686092,1769478645192,-500.0,0.00017999,2]
[403686093,1769478645201,-500.0,0.00017999,2]
[403686094,1769478645210,-500.0,0.00017999,2]
[403686095,1769478645219,-360.07461884,0.00017999,2]
[403686096,1769478645229,-500.0,0.00017999,2]
[403686097,1769478645238,-500.0,0.00017999,2]
[403686098,1769478645247,-284.23649948,0.00017999,2]
[403686099,1769478645257,-300.0,0.00017999,2]
[403686100,1769478645266,-500.0,0.00017999,2]
[403686101,1769478645275,-215.57339081,0.00017999,2]
[403686102,1769478645284,-500.0,0.00017999,2]
[403686103,1769478645294,-500.0,0.00017999,2]
[403686104,1769478645303,-500.0,0.00017999,2]
[403686105,1769478645312,-500.0,0.00017999,2]
[403686106,1769478645322,-500.0,0.00017999,2]
[403686107,1769478645331,-500.0,0.00017999,2]
[403686108,1769478645340,-500.0,0.00017999,2]
[403686109,1769478645350,-500.0,0.00017999,2]
[403686110,1769478645359,-500.0,0.00017999,2]
[403686111,1769478645368,-500.0,0.00017999,2]
[403686112,1769478645378,-500.0,0.00017999,2]
[403686113,1769478645388,-500.0,0.00017999,2]
[403686114,1769478645397,-500.0,0.00017999,2]
[403686115,1769478645406,-500.0,0.00017999,2]
[403686116,1769478645415,-500.0,0.00017999,2]
[403686117,1769478645424,-644.03360712,0.00017999,2]
[403686118,1769478645433,-500.0,0.00017999,6]
[403686119,1769478645442,-500.0,0.00017999,7]
[403686120,1769478645451,-500.0,0.00017999,8]
[403686121,1769478645461,-500.0,0.00017999,9]
[403686122,1769478645470,-500.0,0.00017999,10]
[403686123,1769478645480,-500.0,0.00017999,11]
[403686124,1769478645489,-500.0,0.00017999,12]
[403686125,1769478645499,-500.0,0.00017999,13]
[403686126,1769478645508,-500.0,0.00017999,14]
[403686127,1769478645517,-500.0,0.00017999,15]
[403686128,1769478645526,-500.0,0.00017999,16]
[403686129,1769478645536,-500.0,0.00017999,17]
[403686130,1769478645545,-500.0,0.00017999,18]
[403686131,1769478645555,-500.0,0.00017999,19]
[403686132,1769478645564,-500.0,0.00017999,20]
[403686133,1769478645573,-500.0,0.00017999,21]
[403686134,1769478645582,-500.0,0.00017999,21]
[403686135,1769478645591,-569.89723415,0.00017999,21]
[403686136,1769478645601,-300.0,0.00017999,2]
[403686137,1769478645610,-500.0,0.00017999,2]
[403686138,1769478645620,-358.841013,0.00017999,2]
[403686139,1769478645629,-503.87448649,0.00017999,2]
[403686140,1769478645638,-500.0,0.00017999,2]
[403686141,1769478645647,-500.0,0.00017999,2]
[403686142,1769478645657,-384.6317228,0.00017999,2]
[403686143,1769478645666,-300.0,0.00017999,2]
[403686144,1769478645675,-500.0,0.00017999,2]
[403686145,1769478645685,-500.0,0.00017999,2]
[403686146,1769478645694,-618.26420438,0.00017999,2]
[403686147,1769478645703,-271.61553299,0.00017999,2]
[403686148,1769478645712,-300.0,0.00017999,2]
[403686149,1769478645721,-300.0,0.00017999,2]
[403686150,1769478645730,-300.0,0.00017999,2]
[403686151,1769478645740,-300.0,0.00017999,2]
[403686152,1769478645749,-1009.2349,0.00017999,2]
[403686153,1769478645760,-300.0,0.00017999,2]
[403686154,1769478645769,-666.0,0.00017999,2]
[403686155,1769478645778,-277.3965578,0.00018,2]
[403686156,1769478645787,-3783789.03364496,0.00018,2]
[403686157,1769478645796,-110199.41631262,0.00018,2]
[403686158,1769478645806,-59192.29570612,0.00018,2]
[403686159,1769478645815,-827136.98489324,0.00018,2]
[403686164,1769478647511,-1.7e-07,0.00018,2]
[403686165,1769478647668,5026.45,0.00015319,2]
[403686166,1769478647695,10000.01,0.00015319,2]
[403686167,1769478647720,300.25054777,0.00015319,2]
[403686168,1769478647920,-1861.03274421,0.00018,2]
[403686169,1769478647941,-634.43867938,0.00018,2]
[403686170,1769478649639,-1000.0,0.00015606,2]
[403686171,1769478649657,-1558.51632406,0.00015606,2]
[403686172,1769478759497,-440.8703073,0.00015394,2]
[403686173,1769478765094,-258.69331905,0.00015394,2]
[403686174,1769478768575,-469.88313577,0.00015394,2]
[403686175,1769478770678,-305.55713342,0.00015394,2]
[403686176,1769478772588,-305.38696333,0.00015394,2]
[403686177,1769478775357,-274.88,0.00015394,2]
[403686178,1769478778017,-771.45056137,0.00015394,2]
[403686179,1769478781810,-289.01079653,0.00015393,2]
[403686180,1769478781833,-246.6558752,0.00015393,2]
[403686181,1769478783036,-233.87637122,0.00015393,2]
[403686182,1769478785254,-19.46775358,0.00015393,2]
[403686183,1769478785278,-131.53224659,0.00015393,2]
[403686184,1769478787440,-228.64816658,0.00015393,2]
[403686185,1769478791736,-172.0456,0.00015393,2]
[403686186,1769478793592,-99.30623342,0.00015393,2]
[403686187,1769478793616,-200.69376658,0.00015393,2]
[403686188,1769478795077,-299.30623342,0.00015393,2]
[403686189,1769478795101,-240.62892568,0.00015393,2]
[403686190,1769478797826,-278.12650783,0.00015393,2]
[403686191,1769478797852,-2.97826003,0.00015394,2]
[403686192,1769478807562,-183.85483595,0.00015394,2]
[403686193,1769478809301,-453.69282598,0.00015394,2]
[403686194,1769478809330,-310.64050229,0.00015394,2]
[403686195,1769478814550,-300.0,0.00015394,2]
[403686196,1769478816467,-155.03186656,0.00015394,2]
[403686197,1769478818664,-259.66488635,0.00015394,2]
[403686198,1769478822093,-250.0,0.00015394,2]
[403686199,1769478823692,-755.70471927,0.00015394,2]
[403686200,1769478825571,-179.85757063,0.00015394,2]
[403686201,1769478827378,-232.54363134,0.00015394,2]
[403686202,1769478829859,-262.47544925,0.00015394,2]
[403686203,1769478831399,-181.2004307,0.00015394,2]
[403686204,1769478834069,-226.00565513,0.00015394,2]
[403686205,1769478837034,-302.46509455,0.00015394,2]
[403686206,1769478838618,-167.45273979,0.00015394,2]
[403686207,1769478840914,-162.74348126,0.00015394,2]
[403686208,1769478843037,-244.42421167,0.00015393,2]
[403686209,1769478845796,-55.57578833,0.00015393,2]
[403686210,1769478845824,-200.99716894,0.00015394,2]
[403686211,1769478847911,-306.90288865,0.00015394,2]
[403686212,1769478852457,-259.49426084,0.00015394,2]
[403686213,1769478854557,-192.73413162,0.00015394,2]
[403686214,1769478856469,-264.08,0.00015394,2]
[403686215,1769478858591,-323.68495203,0.00015394,2]
[403686216,1769478864118,-155.03186655,0.00015394,2]
[403686217,1769478865654,-319.57239449,0.00015394,2]
[403686218,1769478867196,-202.72970625,0.00015394,2]
[403686219,1769478869858,-239.54442315,0.00015394,2]
[403686220,1769478872639,185.344063,0.00015317,2]
[403686221,1769478874197,-334.99224121,0.00015394,2]
[403686222,1769478878185,-162.54678208,0.00015394,2]
[403686223,1769478880468,-163.78751264,0.00015394,2]
[403686224,1769478881536,-382.27362717,0.00015394,2]
[403686225,1769478884976,-165.51566,0.00015394,2]
[403686226,1769478886566,-294.0920583,0.00015394,2]
[403686227,1769478889823,-337.25651874,0.00015394,2]
[403686228,1769478892577,-159.47121487,0.00015394,2]
[403686229,1769478896481,-500.0,0.00015394,2]
[403686230,1769478897957,-357.43917189,0.00015394,2]
[403686231,1769478913180,971.0,0.0002,120]
[403686238,1769479003396,500.0,0.00015294,2]
[403686239,1769479037148,257.22157514,0.00015354,2]
[403686240,1769479155415,9057.44436186,0.00015354,2]
[403686241,1769479155437,4854.86631456,0.00015354,2]
[403686242,1769479170910,3013.7,0.00015376,2]
[403686243,1769479292083,3557.824,0.00015086,2]
[403686244,1769479292120,297.796,0.00015086,2]
[403686279,1769479529364,153.0,0.00021,30]